[Event "Titled Tuesday Blitz November 14 Late 2023"]
[White "Kanyamarala, Trisha"]
[Black "Cardozo Munar, Carlos Eduardo"]
[WhiteFideId "45004722"]
[BlackFideId "4409477"]
[WhiteElo "2490"]
[BlackElo "2286"]
[Result "1-0"]
[Round "3"]
[TimeControl "180+1"]
[Date "2023.11.14"]
[WhiteClock "0:00:04"]
[BlackClock "0:00:07"]
[Board "137"]

1. c4 {[%clk 0:02:41]}  e6 {[%clk 0:02:58]} 2. Nc3 {[%clk 0:02:41]}  d5 {[%clk 0:02:59]} 3. e3 {[%clk 0:02:41]}  Nf6 {[%clk 0:02:59]} 4. Nf3 {[%clk 0:02:42]}  Bd6 {[%clk 0:02:59]} 5. b3 {[%clk 0:02:42]}  O-O {[%clk 0:02:59]} 6. Bb2 {[%clk 0:02:42]}  Nbd7 {[%clk 0:02:59]} 7. Be2 {[%clk 0:02:42]}  c6 {[%clk 0:02:59]} 8. O-O {[%clk 0:02:42]}  Re8 {[%clk 0:02:59]} 9. d4 {[%clk 0:02:41]}  e5 {[%clk 0:02:57]} 10. dxe5 {[%clk 0:02:38]}  Nxe5 {[%clk 0:02:58]} 11. Nxe5 {[%clk 0:02:37]}  Bxe5 {[%clk 0:02:58]} 12. Qc2 {[%clk 0:02:30]}  dxc4 {[%clk 0:02:54]} 13. Bxc4 {[%clk 0:02:20]}  Bxh2+ {[%clk 0:02:21]} 14. Kxh2 {[%clk 0:01:32]}  Ng4+ {[%clk 0:02:21]} 15. Kg1 {[%clk 0:01:32]}  Qh4 {[%clk 0:02:20]} 16. Rfd1 {[%clk 0:01:32]}  Qh2+ {[%clk 0:02:07]} 17. Kf1 {[%clk 0:01:31]}  Qh1+ {[%clk 0:02:07]} 18. Ke2 {[%clk 0:01:31]}  Qxg2 {[%clk 0:02:08]} 19. Ne4 {[%clk 0:01:18]}  Bf5 {[%clk 0:01:56]} 20. Nf6+ {[%clk 0:00:46]}  gxf6 {[%clk 0:01:38]} 21. Qxf5 {[%clk 0:00:45]}  Rxe3+ {[%clk 0:01:38]} 22. Kd2 {[%clk 0:00:46]}  Rd8+ {[%clk 0:01:36]} 23. Kc2 {[%clk 0:00:45]}  Rxd1 {[%clk 0:01:07]} 24. Rxd1 {[%clk 0:00:42]}  Re5 {[%clk 0:01:02]} 25. Qc8+ {[%clk 0:00:26]}  Kg7 {[%clk 0:01:02]} 26. Bxe5 {[%clk 0:00:21]}  Qxf2+ {[%clk 0:00:45]} 27. Kb1 {[%clk 0:00:14]}  Ne3 {[%clk 0:00:37]} 28. Rc1 {[%clk 0:00:10]}  fxe5 {[%clk 0:00:28]} 29. Qh3 {[%clk 0:00:09]}  f5 {[%clk 0:00:15]} 30. Qh1 {[%clk 0:00:07]}  Ng4 {[%clk 0:00:12]} 31. Qg1 {[%clk 0:00:07]}  Qf4 {[%clk 0:00:11]} 32. Be2 {[%clk 0:00:04]}  Qe4+ {[%clk 0:00:11]} 33. Rc2 {[%clk 0:00:05]}  h5 {[%clk 0:00:09]} 34. Bxg4 {[%clk 0:00:05]}  hxg4 {[%clk 0:00:09]} 35. Qd1 {[%clk 0:00:05]}  Kf6 {[%clk 0:00:09]} 36. Qd8+ {[%clk 0:00:05]}  Kg6 {[%clk 0:00:09]} 37. Kb2 {[%clk 0:00:05]}  g3 {[%clk 0:00:08]} 38. Qg8+ {[%clk 0:00:04]}  Kf6 {[%clk 0:00:08]} 39. Qxg3 {[%clk 0:00:04]}  f4 {[%clk 0:00:08]} 40. Qh4+ {[%clk 0:00:04]}  Ke6 {[%clk 0:00:09]} 41. Qh6+ {[%clk 0:00:04]}  Kf5 {[%clk 0:00:09]} 42. Qh7+ {[%clk 0:00:05]}  Kg4 {[%clk 0:00:08]} 43. Qxe4 {[%clk 0:00:05]}  c5 {[%clk 0:00:08]} 44. Rg2+ {[%clk 0:00:05]}  Kh3 {[%clk 0:00:08]} 45. Qg6 {[%clk 0:00:04]}  e4 {[%clk 0:00:07]} 46. Qg4# {[%clk 0:00:04]} 1-0


[Site "https://www.chess.com"]

[Event "Titled Tuesday Blitz November 14 Late 2023"]
[White "Feliz Dotel, Dewar Bienvenido"]
[Black "Martin Barcelo, Carles"]
[WhiteFideId "6402801"]
[BlackFideId "24561444"]
[WhiteElo "2115"]
[BlackElo "2476"]
[Result "0-1"]
[Round "3"]
[TimeControl "180+1"]
[Date "2023.11.14"]
[WhiteClock "0:00:55"]
[BlackClock "0:01:26"]
[Board "140"]

1. d4 {[%clk 0:02:55]}  f5 {[%clk 0:02:57]} 2. e3 {[%clk 0:02:52]}  Nf6 {[%clk 0:02:57]} 3. Nf3 {[%clk 0:02:52]}  g6 {[%clk 0:02:58]} 4. Be2 {[%clk 0:02:52]}  Bg7 {[%clk 0:02:59]} 5. O-O {[%clk 0:02:53]}  O-O {[%clk 0:02:59]} 6. c4 {[%clk 0:02:52]}  d6 {[%clk 0:02:59]} 7. b3 {[%clk 0:02:51]}  Qe8 {[%clk 0:02:59]} 8. Ba3 {[%clk 0:02:51]}  Nbd7 {[%clk 0:02:58]} 9. Nc3 {[%clk 0:02:51]}  e5 {[%clk 0:02:55]} 10. dxe5 {[%clk 0:02:43]}  Nxe5 {[%clk 0:02:56]} 11. c5 {[%clk 0:02:40]}  dxc5 {[%clk 0:02:46]} 12. Bxc5 {[%clk 0:02:34]}  Rf7 {[%clk 0:02:43]} 13. Rc1 {[%clk 0:01:55]}  Bd7 {[%clk 0:02:27]} 14. Nd5 {[%clk 0:01:48]}  Nxd5 {[%clk 0:02:21]} 15. Qxd5 {[%clk 0:01:45]}  Bc6 {[%clk 0:02:22]} 16. Qd1 {[%clk 0:01:33]}  Rd7 {[%clk 0:02:15]} 17. Qc2 {[%clk 0:01:28]}  Nxf3+ {[%clk 0:02:13]} 18. Bxf3 {[%clk 0:01:25]}  Bxf3 {[%clk 0:02:13]} 19. gxf3 {[%clk 0:01:25]}  a6 {[%clk 0:01:35]} 20. Rfd1 {[%clk 0:01:21]}  Rad8 {[%clk 0:01:33]} 21. Qc4+ {[%clk 0:01:10]}  Kh8 {[%clk 0:01:29]} 22. Bb4 {[%clk 0:00:55]}  Rxd1+ {[%clk 0:01:26]} 0-1


[Site "https://www.chess.com"]

[Event "Titled Tuesday Blitz November 14 Late 2023"]
[White "AndresDelgado77"]
[Black "Chor, Kevin"]
[BlackFideId "2090740"]
[WhiteElo "2328"]
[BlackElo "2604"]
[Result "0-1"]
[Round "3"]
[TimeControl "180+1"]
[Date "2023.11.14"]
[WhiteClock "0:00:00"]
[BlackClock "0:00:07"]
[Board "143"]

1. e4 {[%clk 0:02:59]}  c5 {[%clk 0:02:57]} 2. Nf3 {[%clk 0:02:58]}  Nc6 {[%clk 0:02:57]} 3. b4 {[%clk 0:02:58]}  cxb4 {[%clk 0:02:43]} 4. d4 {[%clk 0:02:58]}  d6 {[%clk 0:02:23]} 5. d5 {[%clk 0:02:57]}  Nb8 {[%clk 0:02:22]} 6. a3 {[%clk 0:02:47]}  bxa3 {[%clk 0:02:21]} 7. Nxa3 {[%clk 0:02:44]}  Nf6 {[%clk 0:02:21]} 8. Bd3 {[%clk 0:02:24]}  g6 {[%clk 0:02:19]} 9. Nb5 {[%clk 0:02:07]}  Bg7 {[%clk 0:02:12]} 10. Bb2 {[%clk 0:02:02]}  O-O {[%clk 0:02:04]} 11. h3 {[%clk 0:01:58]}  Na6 {[%clk 0:02:00]} 12. O-O {[%clk 0:01:53]}  Bd7 {[%clk 0:01:56]} 13. Nbd4 {[%clk 0:01:47]}  Nc5 {[%clk 0:01:52]} 14. Re1 {[%clk 0:01:42]}  Qc7 {[%clk 0:01:34]} 15. c4 {[%clk 0:01:10]}  a5 {[%clk 0:01:27]} 16. Rc1 {[%clk 0:01:04]}  Ba4 {[%clk 0:01:22]} 17. Bc2 {[%clk 0:00:56]}  Bxc2 {[%clk 0:01:05]} 18. Qxc2 {[%clk 0:00:55]}  a4 {[%clk 0:01:06]} 19. Nb5 {[%clk 0:00:47]}  Qb6 {[%clk 0:01:01]} 20. e5 {[%clk 0:00:44]}  dxe5 {[%clk 0:00:55]} 21. Nxe5 {[%clk 0:00:40]}  Rfc8 {[%clk 0:00:55]} 22. Bd4 {[%clk 0:00:31]}  Qd8 {[%clk 0:00:49]} 23. Ra1 {[%clk 0:00:28]}  Nb3 {[%clk 0:00:46]} 24. Ra3 {[%clk 0:00:21]}  Nxd5 {[%clk 0:00:37]} 25. Nxf7 {[%clk 0:00:15]}  Nxd4 {[%clk 0:00:32]} 26. Nxd4 {[%clk 0:00:13]}  Kxf7 {[%clk 0:00:32]} 27. Qe4 {[%clk 0:00:11]}  Bxd4 {[%clk 0:00:26]} 28. cxd5 {[%clk 0:00:08]}  Bf6 {[%clk 0:00:25]} 29. Rxa4 {[%clk 0:00:07]}  Rxa4 {[%clk 0:00:25]} 30. Qxa4 {[%clk 0:00:07]}  Qxd5 {[%clk 0:00:26]} 31. Rb1 {[%clk 0:00:05]}  b5 {[%clk 0:00:15]} 32. Rxb5 {[%clk 0:00:04]}  Rc1+ {[%clk 0:00:15]} 33. Kh2 {[%clk 0:00:04]}  Qd6+ {[%clk 0:00:10]} 34. f4 {[%clk 0:00:03]}  g5 {[%clk 0:00:09]} 35. Qa2+ {[%clk 0:00:00]}  Kg7 {[%clk 0:00:07]} 0-1


[Site "https://www.chess.com"]

[Event "Titled Tuesday Blitz November 14 Late 2023"]
[White "Tikhonov, Viacheslav"]
[Black "Lopez Del Alamo, Antonio"]
[WhiteFideId "44196407"]
[BlackFideId "2227339"]
[WhiteElo "2564"]
[BlackElo "2328"]
[Result "1-0"]
[Round "3"]
[TimeControl "180+1"]
[Date "2023.11.14"]
[WhiteClock "0:00:02"]
[BlackClock "0:00:07"]
[Board "144"]

1. e4 {[%clk 0:02:49]}  c5 {[%clk 0:02:39]} 2. Nf3 {[%clk 0:02:48]}  e6 {[%clk 0:02:37]} 3. b3 {[%clk 0:02:48]}  Nc6 {[%clk 0:02:33]} 4. Bb2 {[%clk 0:02:47]}  Nge7 {[%clk 0:02:32]} 5. g3 {[%clk 0:02:39]}  d5 {[%clk 0:02:25]} 6. exd5 {[%clk 0:02:35]}  exd5 {[%clk 0:02:18]} 7. Bg2 {[%clk 0:02:35]}  Bf5 {[%clk 0:02:11]} 8. O-O {[%clk 0:02:33]}  Qd6 {[%clk 0:02:10]} 9. d4 {[%clk 0:02:29]}  O-O-O {[%clk 0:02:07]} 10. Ba3 {[%clk 0:02:20]}  b6 {[%clk 0:01:49]} 11. Nc3 {[%clk 0:02:19]}  Ng6 {[%clk 0:01:40]} 12. dxc5 {[%clk 0:02:13]}  bxc5 {[%clk 0:01:39]} 13. Na4 {[%clk 0:02:09]}  Nb4 {[%clk 0:01:28]} 14. c3 {[%clk 0:01:34]}  Nd3 {[%clk 0:01:27]} 15. Nd4 {[%clk 0:01:27]}  Qf6 {[%clk 0:01:25]} 16. Nxf5 {[%clk 0:01:19]}  Qxf5 {[%clk 0:01:25]} 17. Qc2 {[%clk 0:00:51]}  c4 {[%clk 0:01:18]} 18. bxc4 {[%clk 0:00:52]}  dxc4 {[%clk 0:01:18]} 19. Bxf8 {[%clk 0:00:50]}  Rhxf8 {[%clk 0:01:16]} 20. Rab1 {[%clk 0:00:46]}  Nge5 {[%clk 0:00:50]} 21. Kh1 {[%clk 0:00:08]}  Ng4 {[%clk 0:00:45]} 22. Rb8+ {[%clk 0:00:04]}  Kc7 {[%clk 0:00:43]} 23. Rb7+ {[%clk 0:00:04]}  Kc8 {[%clk 0:00:42]} 24. Rxa7 {[%clk 0:00:02]}  Ngxf2+ {[%clk 0:00:39]} 25. Kg1 {[%clk 0:00:02]}  Rfe8 {[%clk 0:00:32]} 26. Qb1 {[%clk 0:00:02]}  Nh3+ {[%clk 0:00:14]} 27. Bxh3 {[%clk 0:00:01]}  Re1 {[%clk 0:00:13]} 28. Rxe1 {[%clk 0:00:01]}  Rd5 {[%clk 0:00:07]} 29. Qb7+ {[%clk 0:00:01]}  Kd8 {[%clk 0:00:08]} 30. Qe7+ {[%clk 0:00:02]}  Kc8 {[%clk 0:00:07]} 31. Qc7# {[%clk 0:00:02]} 1-0


[Site "https://www.chess.com"]

[Event "Titled Tuesday Blitz November 14 Late 2023"]
[White "Ramadoss, Ashokkumar"]
[Black "Toncheva, Nadya"]
[WhiteFideId "5040990"]
[BlackFideId "2924056"]
[WhiteElo "2327"]
[BlackElo "2561"]
[Result "1/2-1/2"]
[Round "3"]
[TimeControl "180+1"]
[Date "2023.11.14"]
[WhiteClock "0:00:10"]
[BlackClock "0:00:08"]
[Board "145"]

1. Nf3 {[%clk 0:03:00]}  g6 {[%clk 0:02:18]} 2. c4 {[%clk 0:03:01]}  c5 {[%clk 0:02:05]} 3. Nc3 {[%clk 0:03:00]}  Nc6 {[%clk 0:02:02]} 4. d4 {[%clk 0:03:00]}  cxd4 {[%clk 0:02:02]} 5. Nxd4 {[%clk 0:03:01]}  Nf6 {[%clk 0:02:01]} 6. e4 {[%clk 0:03:00]}  d6 {[%clk 0:02:00]} 7. Be2 {[%clk 0:03:00]}  Bg7 {[%clk 0:01:59]} 8. Be3 {[%clk 0:02:59]}  O-O {[%clk 0:01:58]} 9. O-O {[%clk 0:02:59]}  Bd7 {[%clk 0:01:58]} 10. Qd2 {[%clk 0:02:59]}  Nxd4 {[%clk 0:01:57]} 11. Bxd4 {[%clk 0:02:59]}  Bc6 {[%clk 0:01:58]} 12. f3 {[%clk 0:02:59]}  a5 {[%clk 0:01:58]} 13. b3 {[%clk 0:02:58]}  Nd7 {[%clk 0:01:58]} 14. Be3 {[%clk 0:02:57]}  Nc5 {[%clk 0:01:57]} 15. Rab1 {[%clk 0:02:57]}  Qb6 {[%clk 0:01:56]} 16. Rfc1 {[%clk 0:02:57]}  Rfc8 {[%clk 0:01:57]} 17. Kh1 {[%clk 0:02:35]}  Qd8 {[%clk 0:01:54]} 18. Rd1 {[%clk 0:02:21]}  h5 {[%clk 0:01:51]} 19. Qe1 {[%clk 0:02:12]}  Kh7 {[%clk 0:01:47]} 20. Bxc5 {[%clk 0:02:08]}  Qh8 {[%clk 0:01:42]} 21. Be3 {[%clk 0:01:43]}  Bxc3 {[%clk 0:01:41]} 22. Bd2 {[%clk 0:01:43]}  Bxd2 {[%clk 0:01:37]} 23. Qxd2 {[%clk 0:01:43]}  Qe5 {[%clk 0:01:33]} 24. Qd4 {[%clk 0:01:43]}  Qxd4 {[%clk 0:01:33]} 25. Rxd4 {[%clk 0:01:43]}  h4 {[%clk 0:01:26]} 26. Kg1 {[%clk 0:01:42]}  g5 {[%clk 0:01:26]} 27. Kf2 {[%clk 0:01:42]}  Kg7 {[%clk 0:01:26]} 28. Ke3 {[%clk 0:01:41]}  Kf6 {[%clk 0:01:26]} 29. Rc1 {[%clk 0:01:39]}  Bd7 {[%clk 0:01:21]} 30. Rd5 {[%clk 0:01:34]}  Be6 {[%clk 0:01:20]} 31. Rdd1 {[%clk 0:01:22]}  Rc6 {[%clk 0:01:14]} 32. g3 {[%clk 0:01:20]}  hxg3 {[%clk 0:01:13]} 33. hxg3 {[%clk 0:01:20]}  Rac8 {[%clk 0:01:13]} 34. Kd2 {[%clk 0:01:09]}  Rb6 {[%clk 0:01:10]} 35. f4 {[%clk 0:00:57]}  a4 {[%clk 0:01:06]} 36. Kc3 {[%clk 0:00:52]}  axb3 {[%clk 0:00:52]} 37. axb3 {[%clk 0:00:51]}  Ra6 {[%clk 0:00:53]} 38. Ra1 {[%clk 0:00:50]}  Rca8 {[%clk 0:00:51]} 39. Kb2 {[%clk 0:00:38]}  Rxa1 {[%clk 0:00:45]} 40. Rxa1 {[%clk 0:00:39]}  Rxa1 {[%clk 0:00:45]} 41. Kxa1 {[%clk 0:00:40]}  b6 {[%clk 0:00:46]} 42. Kb2 {[%clk 0:00:40]}  Bd7 {[%clk 0:00:46]} 43. Kc3 {[%clk 0:00:40]}  gxf4 {[%clk 0:00:47]} 44. gxf4 {[%clk 0:00:40]}  e5 {[%clk 0:00:48]} 45. f5 {[%clk 0:00:32]}  Kg5 {[%clk 0:00:48]} 46. Kd3 {[%clk 0:00:22]}  Kf4 {[%clk 0:00:46]} 47. Bf1 {[%clk 0:00:22]}  f6 {[%clk 0:00:43]} 48. Bg2 {[%clk 0:00:20]}  Bc6 {[%clk 0:00:43]} 49. Bh1 {[%clk 0:00:20]}  b5 {[%clk 0:00:42]} 50. cxb5 {[%clk 0:00:15]}  Bxb5+ {[%clk 0:00:42]} 51. Kc3 {[%clk 0:00:16]}  Be2 {[%clk 0:00:39]} 52. b4 {[%clk 0:00:15]}  Kg3 {[%clk 0:00:39]} 53. Kd2 {[%clk 0:00:12]}  Bb5 {[%clk 0:00:39]} 54. Ke3 {[%clk 0:00:12]}  Kh4 {[%clk 0:00:29]} 55. Bf3 {[%clk 0:00:13]}  Kg5 {[%clk 0:00:26]} 56. Be2 {[%clk 0:00:13]}  Bc6 {[%clk 0:00:26]} 57. Bc4 {[%clk 0:00:14]}  d5 {[%clk 0:00:09]} 58. Bxd5 {[%clk 0:00:13]}  Bb5 {[%clk 0:00:10]} 59. Kd2 {[%clk 0:00:11]}  Kf4 {[%clk 0:00:10]} 60. Kc3 {[%clk 0:00:11]}  Ke3 {[%clk 0:00:10]} 61. Bc4 {[%clk 0:00:10]}  Bc6 {[%clk 0:00:10]} 62. Bd5 {[%clk 0:00:10]}  Bb5 {[%clk 0:00:10]} 63. Bc4 {[%clk 0:00:10]}  Bc6 {[%clk 0:00:09]} 64. Bd5 {[%clk 0:00:10]}  Bb5 {[%clk 0:00:08]} 1/2-1/2


[Site "https://www.chess.com"]

[Event "Titled Tuesday Blitz November 14 Late 2023"]
[White "Gasparyan, David"]
[Black "Romero Ruscalleda, Josep"]
[WhiteFideId "13311980"]
[BlackFideId "2231859"]
[WhiteElo "2501"]
[BlackElo "2309"]
[Result "0-1"]
[Round "3"]
[TimeControl "180+1"]
[Date "2023.11.14"]
[WhiteClock "0:00:38"]
[BlackClock "0:00:30"]
[Board "147"]

1. e4 {[%clk 0:02:51]}  g6 {[%clk 0:03:00]} 2. Nf3 {[%clk 0:02:51]}  Bg7 {[%clk 0:03:01]} 3. c3 {[%clk 0:02:51]}  d6 {[%clk 0:03:02]} 4. d4 {[%clk 0:02:51]}  Nf6 {[%clk 0:03:01]} 5. Bd3 {[%clk 0:02:51]}  O-O {[%clk 0:03:01]} 6. O-O {[%clk 0:02:51]}  b6 {[%clk 0:03:02]} 7. Re1 {[%clk 0:02:47]}  Nc6 {[%clk 0:03:00]} 8. a4 {[%clk 0:02:47]}  e5 {[%clk 0:03:00]} 9. d5 {[%clk 0:02:43]}  Ne7 {[%clk 0:03:00]} 10. a5 {[%clk 0:02:43]}  c6 {[%clk 0:02:56]} 11. c4 {[%clk 0:02:36]}  bxa5 {[%clk 0:02:48]} 12. Qa4 {[%clk 0:02:31]}  cxd5 {[%clk 0:02:38]} 13. cxd5 {[%clk 0:02:30]}  Bd7 {[%clk 0:02:35]} 14. Qxa5 {[%clk 0:02:30]}  Nh5 {[%clk 0:02:33]} 15. Bg5 {[%clk 0:02:21]}  f6 {[%clk 0:02:31]} 16. Be3 {[%clk 0:02:19]}  f5 {[%clk 0:02:27]} 17. Qxd8 {[%clk 0:01:59]}  Rfxd8 {[%clk 0:02:27]} 18. Nc3 {[%clk 0:01:48]}  a5 {[%clk 0:02:18]} 19. Bb6 {[%clk 0:01:45]}  Rdb8 {[%clk 0:02:16]} 20. Bc7 {[%clk 0:01:46]}  Rxb2 {[%clk 0:02:15]} 21. Bxd6 {[%clk 0:01:46]}  fxe4 {[%clk 0:02:10]} 22. Bxe4 {[%clk 0:01:43]}  Nf5 {[%clk 0:02:09]} 23. Ba3 {[%clk 0:01:41]}  Rb3 {[%clk 0:02:04]} 24. Rec1 {[%clk 0:01:41]}  Rc8 {[%clk 0:02:02]} 25. Ne2 {[%clk 0:01:37]}  Rxc1+ {[%clk 0:01:53]} 26. Nxc1 {[%clk 0:01:37]}  Rb8 {[%clk 0:01:49]} 27. Nd3 {[%clk 0:01:34]}  Nf6 {[%clk 0:01:34]} 28. Bxf5 {[%clk 0:01:30]}  Bxf5 {[%clk 0:01:33]} 29. Ndxe5 {[%clk 0:01:30]}  Nxd5 {[%clk 0:01:32]} 30. h3 {[%clk 0:01:26]}  Be4 {[%clk 0:01:29]} 31. Re1 {[%clk 0:01:25]}  Rb1 {[%clk 0:01:24]} 32. Nc6 {[%clk 0:01:15]}  Rxe1+ {[%clk 0:01:22]} 33. Nxe1 {[%clk 0:01:16]}  Bc3 {[%clk 0:01:19]} 34. Nf3 {[%clk 0:01:06]}  Nb4 {[%clk 0:01:14]} 35. Nxa5 {[%clk 0:01:05]}  Nc2 {[%clk 0:01:09]} 36. Nc4 {[%clk 0:01:04]}  Nxa3 {[%clk 0:01:03]} 37. Nxa3 {[%clk 0:01:04]}  Bd3 {[%clk 0:01:00]} 38. Ng5 {[%clk 0:01:00]}  Bb4 {[%clk 0:00:57]} 39. g4 {[%clk 0:00:54]}  Bxa3 {[%clk 0:00:56]} 40. Kg2 {[%clk 0:00:55]}  Bc1 {[%clk 0:00:55]} 41. Ne6 {[%clk 0:00:54]}  Kf7 {[%clk 0:00:52]} 42. Nc5 {[%clk 0:00:54]}  Bc2 {[%clk 0:00:52]} 43. Kf3 {[%clk 0:00:48]}  Ba3 {[%clk 0:00:51]} 44. Nd7 {[%clk 0:00:46]}  Ke6 {[%clk 0:00:46]} 45. Nb6 {[%clk 0:00:46]}  Bb3 {[%clk 0:00:43]} 46. Ke4 {[%clk 0:00:45]}  Bc5 {[%clk 0:00:43]} 47. Nc8 {[%clk 0:00:39]}  Kd7 {[%clk 0:00:40]} 48. Ke5 {[%clk 0:00:39]}  Kxc8 {[%clk 0:00:38]} 49. Kf6 {[%clk 0:00:38]}  Bd4+ {[%clk 0:00:37]} 50. Kg5 {[%clk 0:00:38]}  Bxf2 {[%clk 0:00:33]} 51. Kh6 {[%clk 0:00:38]}  Bh4 {[%clk 0:00:34]} 52. Kxh7 {[%clk 0:00:38]}  g5 {[%clk 0:00:34]} 53. Kg6 {[%clk 0:00:38]}  Bc4 {[%clk 0:00:34]} 54. Kf5 {[%clk 0:00:38]}  Bf1 {[%clk 0:00:34]} 55. Ke4 {[%clk 0:00:37]}  Bxh3 {[%clk 0:00:34]} 56. Kf3 {[%clk 0:00:38]}  Kd7 {[%clk 0:00:34]} 57. Ke4 {[%clk 0:00:37]}  Bxg4 {[%clk 0:00:34]} 58. Ke3 {[%clk 0:00:38]}  Bf5 {[%clk 0:00:33]} 59. Ke2 {[%clk 0:00:39]}  Ke6 {[%clk 0:00:34]} 60. Kf3 {[%clk 0:00:39]}  Ke5 {[%clk 0:00:34]} 61. Kg2 {[%clk 0:00:40]}  Kf4 {[%clk 0:00:34]} 62. Kh2 {[%clk 0:00:41]}  Kg4 {[%clk 0:00:33]} 63. Kg1 {[%clk 0:00:41]}  Kg3 {[%clk 0:00:33]} 64. Kh1 {[%clk 0:00:41]}  g4 {[%clk 0:00:32]} 65. Kg1 {[%clk 0:00:42]}  Bg5 {[%clk 0:00:32]} 66. Kh1 {[%clk 0:00:40]}  Bd2 {[%clk 0:00:31]} 67. Kg1 {[%clk 0:00:40]}  Bd3 {[%clk 0:00:31]} 68. Kh1 {[%clk 0:00:39]}  Kf2 {[%clk 0:00:30]} 69. Kh2 {[%clk 0:00:39]}  Bf4+ {[%clk 0:00:30]} 70. Kh1 {[%clk 0:00:38]}  Be4# {[%clk 0:00:30]} 0-1


[Site "https://www.chess.com"]

[Event "Titled Tuesday Blitz November 14 Late 2023"]
[White "Ballester Llagaria, Luis Eduardo"]
[Black "GAO"]
[WhiteFideId "2297620"]
[WhiteElo "2491"]
[BlackElo "2301"]
[Result "1-0"]
[Round "3"]
[TimeControl "180+1"]
[Date "2023.11.14"]
[WhiteClock "0:01:45"]
[BlackClock "0:00:50"]
[Board "149"]

1. e4 {[%clk 0:03:00]}  c5 {[%clk 0:02:59]} 2. Nc3 {[%clk 0:02:57]}  Nc6 {[%clk 0:03:00]} 3. Bb5 {[%clk 0:02:57]}  g6 {[%clk 0:02:52]} 4. Bxc6 {[%clk 0:02:57]}  dxc6 {[%clk 0:02:53]} 5. f4 {[%clk 0:02:56]}  Bg7 {[%clk 0:02:54]} 6. Nf3 {[%clk 0:02:57]}  Bg4 {[%clk 0:02:47]} 7. O-O {[%clk 0:02:57]}  e5 {[%clk 0:02:46]} 8. d3 {[%clk 0:02:55]}  Ne7 {[%clk 0:02:40]} 9. h3 {[%clk 0:02:55]}  Bxf3 {[%clk 0:02:39]} 10. Qxf3 {[%clk 0:02:56]}  O-O {[%clk 0:02:39]} 11. f5 {[%clk 0:02:56]}  f6 {[%clk 0:02:19]} 12. Be3 {[%clk 0:02:54]}  b6 {[%clk 0:02:18]} 13. a4 {[%clk 0:02:53]}  gxf5 {[%clk 0:02:15]} 14. exf5 {[%clk 0:02:53]}  Nd5 {[%clk 0:02:16]} 15. Ne4 {[%clk 0:02:50]}  Kh8 {[%clk 0:01:57]} 16. g4 {[%clk 0:02:49]}  Rg8 {[%clk 0:01:55]} 17. Kh2 {[%clk 0:02:49]}  Qf8 {[%clk 0:01:56]} 18. c4 {[%clk 0:02:45]}  Nb4 {[%clk 0:01:52]} 19. Bd2 {[%clk 0:02:43]}  Bh6 {[%clk 0:01:48]} 20. Bxb4 {[%clk 0:02:42]}  Bf4+ {[%clk 0:01:48]} 21. Qxf4 {[%clk 0:02:32]}  exf4 {[%clk 0:01:46]} 22. Bc3 {[%clk 0:02:33]}  h6 {[%clk 0:01:42]} 23. Nxf6 {[%clk 0:02:29]}  Qf7 {[%clk 0:01:23]} 24. Rae1 {[%clk 0:02:27]}  Rgd8 {[%clk 0:01:07]} 25. Nd5+ {[%clk 0:01:51]}  Kg8 {[%clk 0:01:05]} 26. Nxf4 {[%clk 0:01:47]}  Re8 {[%clk 0:00:59]} 27. Re6 {[%clk 0:01:45]}  Rad8 {[%clk 0:00:56]} 28. Rfe1 {[%clk 0:01:44]}  Rxe6 {[%clk 0:00:54]} 29. Rxe6 {[%clk 0:01:45]}  Rxd3 {[%clk 0:00:51]} 30. Nxd3 {[%clk 0:01:45]}  Qc7+ {[%clk 0:00:50]} 31. Ne5 {[%clk 0:01:45]}  Qd7 {[%clk 0:00:50]} 32. Nxd7 {[%clk 0:01:45]} 1-0


[Site "https://www.chess.com"]

[Event "Titled Tuesday Blitz November 14 Late 2023"]
[White "Minina, Veronika"]
[Black "Cruz Mendez, Jean Marco"]
[WhiteFideId "4174780"]
[BlackFideId "3526402"]
[WhiteElo "2294"]
[BlackElo "2466"]
[Result "0-1"]
[Round "3"]
[TimeControl "180+1"]
[Date "2023.11.14"]
[WhiteClock "0:00:02"]
[BlackClock "0:01:21"]
[Board "150"]

1. Nf3 {[%clk 0:02:48]}  Nf6 {[%clk 0:02:59]} 2. g3 {[%clk 0:02:49]}  b6 {[%clk 0:02:58]} 3. Bg2 {[%clk 0:02:48]}  Bb7 {[%clk 0:02:59]} 4. c4 {[%clk 0:02:47]}  e6 {[%clk 0:02:55]} 5. O-O {[%clk 0:02:47]}  Be7 {[%clk 0:02:56]} 6. b3 {[%clk 0:02:44]}  O-O {[%clk 0:02:56]} 7. Bb2 {[%clk 0:02:44]}  d6 {[%clk 0:02:53]} 8. d3 {[%clk 0:02:43]}  Nbd7 {[%clk 0:02:53]} 9. Nbd2 {[%clk 0:02:42]}  Re8 {[%clk 0:02:50]} 10. b4 {[%clk 0:02:38]}  a5 {[%clk 0:02:48]} 11. b5 {[%clk 0:02:37]}  e5 {[%clk 0:02:46]} 12. Qc2 {[%clk 0:02:33]}  Bf8 {[%clk 0:02:45]} 13. e4 {[%clk 0:02:28]}  Nc5 {[%clk 0:02:40]} 14. Nh4 {[%clk 0:02:27]}  Ne6 {[%clk 0:02:34]} 15. f4 {[%clk 0:02:09]}  Ng4 {[%clk 0:02:01]} 16. f5 {[%clk 0:01:27]}  Ne3 {[%clk 0:01:48]} 17. Qc1 {[%clk 0:01:25]}  Nxf1 {[%clk 0:01:40]} 18. fxe6 {[%clk 0:01:21]}  Nxd2 {[%clk 0:01:40]} 19. exf7+ {[%clk 0:01:21]}  Kxf7 {[%clk 0:01:41]} 20. Qxd2 {[%clk 0:01:20]}  Be7 {[%clk 0:01:40]} 21. Nf5 {[%clk 0:01:19]}  Bf6 {[%clk 0:01:39]} 22. Rf1 {[%clk 0:01:14]}  Kg8 {[%clk 0:01:36]} 23. Qe2 {[%clk 0:00:58]}  Bc8 {[%clk 0:01:35]} 24. Ne3 {[%clk 0:00:46]}  Be6 {[%clk 0:01:34]} 25. Bc1 {[%clk 0:00:40]}  Rf8 {[%clk 0:01:33]} 26. Nf5 {[%clk 0:00:33]}  Bg5 {[%clk 0:01:30]} 27. g4 {[%clk 0:00:29]}  Bxc1 {[%clk 0:01:28]} 28. Rxc1 {[%clk 0:00:30]}  Qg5 {[%clk 0:01:28]} 29. Rf1 {[%clk 0:00:18]}  g6 {[%clk 0:01:28]} 30. h4 {[%clk 0:00:19]}  Qd8 {[%clk 0:01:28]} 31. Nh6+ {[%clk 0:00:18]}  Kg7 {[%clk 0:01:28]} 32. g5 {[%clk 0:00:16]}  Rxf1+ {[%clk 0:01:27]} 33. Bxf1 {[%clk 0:00:16]}  Qe7 {[%clk 0:01:26]} 34. Kh2 {[%clk 0:00:12]}  Rf8 {[%clk 0:01:27]} 35. Bh3 {[%clk 0:00:12]}  Bxh3 {[%clk 0:01:26]} 36. Kxh3 {[%clk 0:00:13]}  Qe6+ {[%clk 0:01:26]} 37. Kg2 {[%clk 0:00:13]}  Rf4 {[%clk 0:01:27]} 38. Qe1 {[%clk 0:00:11]}  Qe7 {[%clk 0:01:23]} 39. a4 {[%clk 0:00:08]}  Qf8 {[%clk 0:01:23]} 40. Qe2 {[%clk 0:00:07]}  Rxh4 {[%clk 0:01:22]} 41. Ng4 {[%clk 0:00:06]}  Qf4 {[%clk 0:01:21]} 42. Nf6 {[%clk 0:00:02]}  Qxg5+ {[%clk 0:01:21]} 0-1


[Site "https://www.chess.com"]